[Event "FIDE WYCC Open U14 2023"]
[Site "Montesilvano"]
[Date "2023.11.17"]
[Round "5.31"]
[White "kiladze, Luka"]
[Black "Soni, Arjun"]
[Result "1-0"]
[ECO "D31"]
[WhiteElo "2145"]
[BlackElo "1600"]
[Annotator "NA"]
[PlyCount "119"]
[EventDate "2023.11.13"]
[EventType "swiss"]
[EventCountry "ITA"]
[SourceTitle "playchess.com"]
[Source "ChessBase"]
[SourceQuality "1"]
[TimeControl "40/5400+30:1800+30"]

1. d4 {[%emt 0:00:46]} d5 {[%emt 0:00:03]} 2. c4 {[%emt 0:00:09]} e6 {[%emt 0:00:03]} 3. Nc3 {[%emt 0:00:04]} a6 {[%emt 0:00:03]} 4. cxd5 {[%emt 0:01:23]} exd5 {[%emt 0:00:02]} 5. Nf3 {[%emt 0:01:02]} c6 {[%emt 0:00:01]} 6. Qc2 {[%emt 0:00:27]} Bd6 {[%emt 0:00:16]} 7. Bg5 {[%emt 0:04:37]} Ne7 {[%emt 0:00:27]} 8. e3 {[%emt 0:02:23]} f6 {[%emt 0:00:58]} 9. Bh4 {[%emt 0:00:08]} Bf5 {[%emt 0:00:03]} 10. Bd3 {[%emt 0:00:12]} Bxd3 {[%emt 0:00:21]} 11. Qxd3 {[%emt 0:00:06]} Nd7 {[%emt 0:00:48]} 12. Bg3 {[%emt 0:07:16]} Qc7 {[%emt 0:04:08]} 13. Rc1 {[%emt 0:05:40]} O-O {[%emt 0:03:06]} 14. O-O {[%emt 0:00:12]} Bxg3 {[%emt 0:00:20]} 15. hxg3 {[%emt 0:00:05]} Nb6 {[%emt 0:02:15]} 16. Nd2 {[%emt 0:03:53]} Rfe8 {[%emt 0:03:22]} 17. g4 {[%emt 0:06:22]} Qd7 {[%emt 0:06:49]} 18. f3 {[%emt 0:00:44]} h5 {[%emt 0:01:44]} 19. gxh5 {[%emt 0:02:31]} Qf5 {[%emt 0:01:25]} 20. Qe2 {[%emt 0:16:09]} Qxh5 {[%emt 0:02:31]} 21. g4 {[%emt 0:00:23]} Qh3 {[%emt 0:05:10]} 22. Qg2 {[%emt 0:00:08]} Qxg2+ {[%emt 0:01:04]} 23. Kxg2 {[%emt 0:00:02]} Ng6 {[%emt 0:00:43]} 24. Rfe1 {[%emt 0:01:13]} Kf7 {[%emt 0:01:11]} 25. Kg3 {[%emt 0:00:15]} Re7 {[%emt 0:02:47]} 26. b3 {[%emt 0:06:12]} Rh8 {[%emt 0:02:05]} 27. Re2 {[%emt 0:04:39]} Rhe8 {[%emt 0:14:05]} 28. Rce1 {[%emt 0:00:40]} Nf8 {[%emt 0:04:14]} 29. f4 {[%emt 0:01:34]} Ne6 {[%emt 0:00:37]} 30. Nf3 {[%emt 0:00:42]} Rh8 {[%emt 0:00:56]} 31. e4 {[%emt 0:06:26]} dxe4 {[%emt 0:12:31]} 32. Nxe4 {[%emt 0:00:10]} Rd7 {[%emt 0:00:34]} 33. f5 {[%emt 0:04:44]} Nf8 {[%emt 0:12:30]} 34. Nc5 {[%emt 0:00:40]} Rc7 {[%emt 0:00:31]} 35. Re8 {[%emt 0:07:51]} Nd5 {[%emt 0:18:21]} 36. Rb8 {[%emt 0:00:12]} b6 {[%emt 0:00:58]} 37. Ne6 {[%emt 0:00:25]} Re7 {[%emt 0:00:51]} 38. Nd8+ {[%emt 0:00:35]} Kg8 {[%emt 0:00:08]} 39. Rxe7 {[%emt 0:00:44]} Nxe7 {[%emt 0:00:02]} 40. Rxb6 {[%emt 0:00:00]} Nd7 {[%emt 0:00:00]} 41. Rxa6 {[%emt 0:04:18]} Kh7 {[%emt 0:01:43]} 42. Nxc6 {[%emt 0:00:29]} Nd5 {[%emt 0:00:46]} 43. Ra7 {[%emt 0:00:41]} N5b6 {[%emt 0:00:22]} 44. a4 {[%emt 0:00:25]} Rc8 {[%emt 0:00:44]} 45. Ne7 {[%emt 0:01:00]} Rc3 {[%emt 0:01:17]} 46. a5 {[%emt 0:00:25]} Rxb3 {[%emt 0:00:05]} 47. axb6 {[%emt 0:00:05]} Nxb6 {[%emt 0:00:07]} 48. Rb7 {[%emt 0:00:20]} Re3 {[%emt 0:00:38]} 49. Rxb6 {[%emt 0:00:44]} Rxe7 {[%emt 0:00:02]} 50. d5 {[%emt 0:00:54]} Rd7 {[%emt 0:00:09]} 51. d6 {[%emt 0:00:05]} g6 {[%emt 0:00:03]} 52. Kf4 {[%emt 0:00:11]} g5+ {[%emt 0:00:36]} 53. Ke4 {[%emt 0:00:04]} Kh6 {[%emt 0:00:10]} 54. Kd5 {[%emt 0:00:50]} Ra7 {[%emt 0:00:29]} 55. Ke6 {[%emt 0:00:31]} Ra3 {[%emt 0:00:35]} 56. d7 {[%emt 0:00:25]} Re3+ {[%emt 0:00:41]} 57. Kxf6 {[%emt 0:00:22]} Rd3 {[%emt 0:00:48]} 58. d8=Q {[%emt 0:00:37]} Rd7 {[%emt 0:00:35]} 59. Qh8+ {[%emt 0:00:15]} Rh7 {[%emt 0:00:09]} 60. Ke5# 1-0

[Event "FIDE WYCC Open U14 2023"]
[Site "Montesilvano"]
[Date "2023.11.17"]
[Round "5.32"]
[White "Salinas Cardenas, Rodrigo Salvador"]
[Black "George Micheal, Kevin"]
[Result "*"]
[WhiteElo "1714"]
[BlackElo "2317"]
[Annotator "RC"]
[PlyCount "105"]
[EventDate "2023.11.13"]
[EventType "swiss"]
[EventCountry "ITA"]
[SourceTitle "playchess.com"]
[Source "ChessBase"]
[SourceQuality "1"]
[TimeControl "40/5400+30:1800+30"]

1. Nf3 {[%emt 0:00:22]} d5 {[%emt 0:02:04]} 2. d4 {[%emt 0:00:21]} Nf6 {[%emt 0:00:04]} 3. c4 {[%emt 0:00:10]} c6 {[%emt 0:00:08]} 4. cxd5 {[%emt 0:00:32]} cxd5 {[%emt 0:00:10]} 5. Nc3 {[%emt 0:01:19]} Nc6 {[%emt 0:00:12]} 6. Bf4 {[%emt 0:00:25]} a6 {[%emt 0:00:49]} 7. e3 {[%emt 0:00:59]} Bf5 {[%emt 0:07:23]} 8. Ne5 {[%emt 0:07:57]} Qb6 {[%emt 0:10:30]} 9. Qb3 {[%emt 0:10:00]} Qxb3 {[%emt 0:16:27]} 10. axb3 {[%emt 0:00:07]} Rc8 {[%emt 0:01:44]} 11. Bd3 {[%emt 0:08:46]} Bxd3 {[%emt 0:01:58]} 12. Nxd3 {[%emt 0:00:12]} e6 {[%emt 0:00:44]} 13. h3 {[%emt 0:09:42]} Be7 {[%emt 0:12:49]} 14. Ke2 {[%emt 0:04:52]} O-O {[%emt 0:02:54]} 15. Rhc1 {[%emt 0:05:19]} Nd7 {[%emt 0:02:09]} 16. Na4 {[%emt 0:12:51]} Na7 {[%emt 0:12:25]} 17. Ne5 {[%emt 0:09:08]} Nxe5 {[%emt 0:02:17]} 18. Bxe5 {[%emt 0:00:06]} Rxc1 {[%emt 0:03:40]} 19. Rxc1 {[%emt 0:00:07]} Rc8 {[%emt 0:00:07]} 20. Rxc8+ {[%emt 0:08:05]} Nxc8 {[%emt 0:01:30]} 21. Bc7 {[%emt 0:06:07]} Kf8 {[%emt 0:01:22]} 22. Nb6 {[%emt 0:03:07]} Nxb6 {[%emt 0:05:58]} 23. Bxb6 {[%emt 0:00:05]} Ke8 {[%emt 0:00:07]} 24. Ba5 {[%emt 0:01:05]} Kd7 {[%emt 0:00:29]} 25. Kd3 {[%emt 0:00:51]} Kc6 {[%emt 0:00:20]} 26. Be1 {[%emt 0:02:56]} Kb5 {[%emt 0:00:49]} 27. f3 {[%emt 0:00:36]} f5 {[%emt 0:04:37]} 28. f4 {[%emt 0:01:29]} Bb4 {[%emt 0:03:23]} 29. Bf2 {[%emt 0:00:08]} a5 {[%emt 0:00:14]} 30. Kc2 {[%emt 0:00:31]} Kc6 {[%emt 0:01:18]} 31. Kd3 {[%emt 0:01:20]} Kb5 {[%emt 0:01:41]} 32. Kc2 {[%emt 0:00:37]} a4 {[%emt 0:00:47]} 33. Bg3 {[%emt 0:03:33]} Bd6 {[%emt 0:01:33]} 34. Be1 {[%emt 0:00:37]} Be7 {[%emt 0:00:41]} 35. h4 {[%emt 0:01:00]} g6 {[%emt 0:02:10]} 36. Bf2 {[%emt 0:01:20]} Bb4 {[%emt 0:00:25]} 37. Bg3 {[%emt 0:00:28]} Ba5 {[%emt 0:01:12]} 38. Bf2 {[%emt 0:00:27]} h6 {[%emt 0:01:01]} 39. Bg3 {[%emt 0:00:56]} Bb4 {[%emt 0:00:39]} 40. Bf2 {[%emt 0:00:00]} Ka5 {[%emt 0:00:00]} 41. Bg3 {[%emt 0:02:23]} Be7 {[%emt 0:04:43]} 42. Be1+ {[%emt 0:00:30]} Bb4 {[%emt 0:00:07]} 43. Bg3 {[%emt 0:00:24]} b5 {[%emt 0:00:31]} 44. Bf2 {[%emt 0:01:26]} Be7 {[%emt 0:00:23]} 45. Be1+ {[%emt 0:00:42]} b4 {[%emt 0:00:58]} 46. bxa4 {[%emt 0:01:12]} Kxa4 {[%emt 0:01:51]} 47. b3+ {[%emt 0:00:07]} Kb5 {[%emt 0:00:49]} 48. Kd3 {[%emt 0:00:22]} Kc6 {[%emt 0:00:11]} 49. Ke2 {[%emt 0:00:35]} Kd7 {[%emt 0:00:11]} 50. g3 {[%emt 0:01:04]} Ke8 {[%emt 0:01:09]} 51. Kf3 {[%emt 0:00:10]} Kf7 {[%emt 0:00:19]} 52. Kg2 {[%emt 0:00:16]} g5 {[%emt 0:02:02]} 53. hxg5 *

[Event "FIDE WYCC Open U14 2023"]
[Site "Montesilvano"]
[Date "2023.11.17"]
[Round "5.33"]
[White "Merida Ceballos, Sebastian"]
[Black "Akhmedov, David"]
[Result "0-1"]
[ECO "B07"]
[WhiteElo "1727"]
[BlackElo "2240"]
[Annotator "ChessBase"]
[PlyCount "118"]
[EventDate "2023.11.13"]
[EventType "swiss"]
[EventCountry "ITA"]
[SourceTitle "playchess.com"]
[Source "ChessBase"]
[SourceQuality "1"]
[TimeControl "40/5400+30:1800+30"]

1. e4 {[%emt 0:03:16]} d6 {[%emt 0:00:05]} 2. d4 {[%emt 0:00:12]} Nf6 {[%emt 0:00:04]} 3. Nc3 {[%emt 0:00:32]} e5 {[%emt 0:00:04]} 4. dxe5 {[%emt 0:01:15]} dxe5 {[%emt 0:00:04]} 5. Qxd8+ {[%emt 0:00:05]} Kxd8 {[%emt 0:00:02]} 6. Bc4 {[%emt 0:02:11]} Be6 {[%emt 0:00:45]} 7. Bxe6 {[%emt 0:01:24]} fxe6 {[%emt 0:00:01]} 8. Nf3 {[%emt 0:08:39]} Bd6 {[%emt 0:00:06]} 9. Bg5 {[%emt 0:05:01]} h6 {[%emt 0:07:30]} 10. Be3 {[%emt 0:06:14]} Nbd7 {[%emt 0:04:40]} 11. O-O-O {[%emt 0:01:30]} Ke7 {[%emt 0:01:03]} 12. a3 {[%emt 0:01:45]} Rhb8 {[%emt 0:02:20]} 13. Nd2 {[%emt 0:08:52]} b5 {[%emt 0:12:14]} 14. a4 {[%emt 0:13:22]} bxa4 {[%emt 0:08:23]} 15. Nxa4 {[%emt 0:09:14]} Rb4 {[%emt 0:00:51]} 16. b3 {[%emt 0:00:03]} Nxe4 {[%emt 0:33:12]} 17. Nxe4 {[%emt 0:01:23]} Rxe4 {[%emt 0:00:01]} 18. c4 {[%emt 0:00:22]} Bb4 {[%emt 0:00:32]} 19. Kc2 {[%emt 0:11:49]} Rg4 {[%emt 0:06:40]} 20. g3 {[%emt 0:01:17]} a5 {[%emt 0:01:03]} 21. Rd3 {[%emt 0:02:52]} Ra6 {[%emt 0:04:47]} 22. Rhd1 {[%emt 0:10:20]} Rd6 {[%emt 0:00:35]} 23. c5 {[%emt 0:00:53]} Rxd3 {[%emt 0:00:37]} 24. Kxd3 {[%emt 0:00:01]} Nf6 {[%emt 0:02:46]} 25. h3 {[%emt 0:02:11]} Rg6 {[%emt 0:00:12]} 26. g4 {[%emt 0:02:02]} Nd5 {[%emt 0:03:12]} 27. Ke4 {[%emt 0:02:14]} Rf6 {[%emt 0:00:34]} 28. g5 {[%emt 0:00:23]} Rg6 {[%emt 0:06:59]} 29. gxh6 {[%emt 0:00:08]} gxh6 {[%emt 0:01:19]} 30. Kxe5 {[%emt 0:01:20]} Nxe3 {[%emt 0:00:11]} 31. fxe3 {[%emt 0:00:01]} Rg3 {[%emt 0:00:02]} 32. Kf4 {[%emt 0:01:22]} Rxh3 {[%emt 0:00:31]} 33. c6 {[%emt 0:00:35]} Bd6+ {[%emt 0:01:01]} 34. Ke4 {[%emt 0:00:03]} Rh4+ {[%emt 0:00:43]} 35. Kf3 {[%emt 0:00:45]} Rb4 {[%emt 0:02:02]} 36. Rd3 {[%emt 0:00:03]} e5 {[%emt 0:00:29]} 37. e4 {[%emt 0:00:15]} Ke6 {[%emt 0:00:14]} 38. Rc3 {[%emt 0:01:41]} Rb5 {[%emt 0:02:50]} 39. Kg4 {[%emt 0:01:38]} Rb4 {[%emt 0:00:33]} 40. Re3 {[%emt 0:00:00]} Be7 {[%emt 0:00:00]} 41. Kh5 {[%emt 0:01:29]} Bg5 {[%emt 0:14:30]} 42. Rc3 {[%emt 0:07:23]} Bd2 {[%emt 0:11:33]} 43. Rg3 {[%emt 0:04:55]} Bg5 {[%emt 0:04:00]} 44. Rc3 {[%emt 0:01:54]} Kd6 {[%emt 0:02:09]} 45. Nc5 {[%emt 0:01:21]} Rd4 {[%emt 0:00:54]} 46. Kg6 {[%emt 0:03:00]} Bd2 {[%emt 0:00:33]} 47. Nb7+ {[%emt 0:00:28]} Ke6 {[%emt 0:00:32]} 48. Rf3 {[%emt 0:02:39]} Bf4 {[%emt 0:00:01]} 49. Nc5+ {[%emt 0:02:01]} Ke7 {[%emt 0:00:35]} 50. Kf5 {[%emt 0:00:56]} Rd6 {[%emt 0:00:44]} 51. Nd3 {[%emt 0:03:44]} Rf6+ {[%emt 0:00:33]} 52. Kg4 {[%emt 0:00:02]} Rg6+ {[%emt 0:00:34]} 53. Kh3 {[%emt 0:00:34]} Rxc6 54. Nxf4 {[%emt 0:00:17]} exf4 {[%emt 0:00:33]} 55. Kg4 {[%emt 0:00:51]} Rf6 {[%emt 0:00:26]} 56. Rc3 {[%emt 0:02:22]} f3 {[%emt 0:00:20]} 57. Rxc7+ {[%emt 0:01:12]} Kd6 {[%emt 0:00:20]} 58. Rc1 {[%emt 0:00:07]} f2 {[%emt 0:00:14]} 59. Rf1 {[%emt 0:00:19]} Ke5 0-1

[Event "FIDE WYCC Open U14 2023"]
[Site "Montesilvano"]
[Date "2023.11.17"]
[Round "5.34"]
[White "Sodbilegt, Naranbold"]
[Black "Nieto Foresti, Julian"]
[Result "1-0"]
[ECO "B42"]
[WhiteElo "2151"]
[BlackElo "1769"]
[Annotator "ChessBase"]
[PlyCount "71"]
[EventDate "2023.11.13"]
[EventType "swiss"]
[EventCountry "ITA"]
[SourceTitle "playchess.com"]
[Source "ChessBase"]
[SourceQuality "1"]
[TimeControl "40/5400+30:1800+30"]

1. e4 {[%emt 0:00:07]} c5 {[%emt 0:00:12]} 2. Nf3 {[%emt 0:00:04]} e6 {[%emt 0:00:09]} 3. d4 {[%emt 0:00:06]} cxd4 {[%emt 0:00:08]} 4. Nxd4 {[%emt 0:00:12]} a6 {[%emt 0:00:13]} 5. Bd3 {[%emt 0:00:44]} Nf6 {[%emt 0:00:47]} 6. O-O {[%emt 0:00:22]} Qc7 {[%emt 0:00:38]} 7. Qe2 {[%emt 0:00:50]} d6 {[%emt 0:01:48]} 8. c4 {[%emt 0:03:16]} b6 {[%emt 0:03:12]} 9. Nc3 {[%emt 0:00:54]} Bb7 {[%emt 0:03:08]} 10. Nd5 {[%emt 0:18:02]} exd5 {[%emt 0:05:36]} 11. exd5+ {[%emt 0:00:05]} Kd8 {[%emt 0:00:54]} 12. Bg5 {[%emt 0:03:26]} Nbd7 {[%emt 0:02:39]} 13. Rfe1 {[%emt 0:04:55]} Kc8 {[%emt 0:03:05]} 14. Qe8+ {[%emt 0:16:31]} Qd8 {[%emt 0:00:11]} 15. Bxf6 {[%emt 0:00:43]} gxf6 {[%emt 0:04:55]} 16. Qxf7 {[%emt 0:00:04]} Ne5 {[%emt 0:02:39]} 17. Qh5 {[%emt 0:01:08]} Be7 {[%emt 0:00:44]} 18. Bf5+ {[%emt 0:04:23]} Kb8 {[%emt 0:00:12]} 19. f4 {[%emt 0:01:15]} Nxc4 {[%emt 0:07:22]} 20. b3 {[%emt 0:12:03]} Ne5 {[%emt 0:05:15]} 21. Rac1 {[%emt 0:07:44]} Qg8 {[%emt 0:13:11]} 22. Be6 {[%emt 0:01:14]} Qg6 {[%emt 0:02:26]} 23. Qe2 {[%emt 0:01:06]} Qd3 {[%emt 0:03:01]} 24. Qf2 {[%emt 0:00:57]} Qg6 {[%emt 0:12:17]} 25. fxe5 {[%emt 0:00:39]} dxe5 {[%emt 0:01:55]} 26. Nc6+ {[%emt 0:00:28]} Bxc6 {[%emt 0:00:33]} 27. Qxb6+ {[%emt 0:00:06]} Bb7 {[%emt 0:00:10]} 28. Rc7 {[%emt 0:02:31]} Ra7 {[%emt 0:03:56]} 29. Rec1 {[%emt 0:01:29]} Ka8 {[%emt 0:05:52]} 30. Bc8 {[%emt 0:03:38]} Bc5+ {[%emt 0:01:36]} 31. R1xc5 {[%emt 0:01:03]} Qb1+ {[%emt 0:01:04]} 32. Rc1 {[%emt 0:00:02]} Qxc1+ {[%emt 0:00:17]} 33. Rxc1 {[%emt 0:00:03]} Rxc8 {[%emt 0:00:12]} 34. Rxc8+ {[%emt 0:00:19]} Bxc8 {[%emt 0:00:09]} 35. Qc6+ {[%emt 0:00:27]} Kb8 {[%emt 0:00:09]} 36. Qxf6 {[%emt 0:00:02]} 1-0

[Event "FIDE WYCC Open U14 2023"]
[Site "Montesilvano"]
[Date "2023.11.17"]
[Round "5.35"]
[White "Yang, Sylvia Siyuan"]
[Black "Arnold, Rhys"]
[Result "*"]
[ECO "A06"]
[WhiteElo "1973"]
[BlackElo "2146"]
[Annotator "ChessBase"]
[PlyCount "106"]
[EventDate "2023.11.13"]
[EventType "swiss"]
[EventCountry "ITA"]
[SourceTitle "playchess.com"]
[Source "ChessBase"]
[SourceQuality "1"]
[TimeControl "40/5400+30:1800+30"]

1. Nf3 {[%emt 0:00:20]} d5 {[%emt 0:00:07]} 2. g3 {[%emt 0:00:04]} c6 {[%emt 0:00:41]} 3. Bg2 {[%emt 0:00:03]} Bg4 {[%emt 0:00:09]} 4. h3 {[%emt 0:00:06]} Bh5 {[%emt 0:00:36]} 5. O-O {[%emt 0:00:06]} Nd7 {[%emt 0:00:17]} 6. c4 {[%emt 0:00:13]} Bxf3 {[%emt 0:01:06]} 7. Bxf3 {[%emt 0:01:06]} Ne5 {[%emt 0:01:00]} 8. Qb3 {[%emt 0:00:01]} Qb6 {[%emt 0:00:28]} 9. cxd5 {[%emt 0:00:31]} Qxb3 {[%emt 0:01:52]} 10. axb3 {[%emt 0:00:02]} Nxf3+ {[%emt 0:00:01]} 11. exf3 {[%emt 0:00:01]} cxd5 {[%emt 0:03:03]} 12. Nc3 {[%emt 0:00:29]} e6 {[%emt 0:11:45]} 13. Nb5 {[%emt 0:00:06]} Kd7 {[%emt 0:02:38]} 14. Rxa7 {[%emt 0:00:05]} Rxa7 {[%emt 0:00:19]} 15. Nxa7 {[%emt 0:00:07]} Bc5 {[%emt 0:12:17]} 16. Nb5 {[%emt 0:00:06]} Ne7 {[%emt 0:00:07]} 17. d3 {[%emt 0:03:48]} Nf5 {[%emt 0:10:16]} 18. g4 {[%emt 0:06:11]} Nd4 {[%emt 0:06:18]} 19. Be3 {[%emt 0:11:10]} Nxb3 {[%emt 0:01:34]} 20. Bxc5 {[%emt 0:00:02]} Nxc5 {[%emt 0:00:02]} 21. Rc1 {[%emt 0:00:01]} Na6 {[%emt 0:00:44]} 22. f4 {[%emt 0:01:00]} Re8 {[%emt 0:08:07]} 23. Kg2 {[%emt 0:02:14]} e5 {[%emt 0:06:01]} 24. fxe5 {[%emt 0:00:02]} Rxe5 {[%emt 0:00:12]} 25. Kf3 {[%emt 0:01:43]} h5 {[%emt 0:03:36]} 26. gxh5 {[%emt 0:02:10]} Rxh5 {[%emt 0:00:44]} 27. Kg4 {[%emt 0:00:19]} Rh6 {[%emt 0:00:27]} 28. Nd4 {[%emt 0:03:11]} Rb6 {[%emt 0:01:47]} 29. Nf5 {[%emt 0:01:41]} g6 {[%emt 0:07:32]} 30. Ne3 {[%emt 0:09:20]} Rxb2 {[%emt 0:01:10]} 31. Nxd5 {[%emt 0:00:03]} Rxf2 {[%emt 0:01:18]} 32. Rb1 {[%emt 0:00:19]} Kd6 {[%emt 0:02:46]} 33. Nc3 {[%emt 0:01:38]} Rc2 {[%emt 0:02:33]} 34. Nb5+ {[%emt 0:02:47]} Kd5 {[%emt 0:03:16]} 35. d4 {[%emt 0:04:26]} Nc7 {[%emt 0:03:48]} 36. Na7 {[%emt 0:05:14]} Kxd4 {[%emt 0:03:42]} 37. Rxb7 {[%emt 0:00:10]} Ke5 {[%emt 0:00:34]} 38. h4 {[%emt 0:02:17]} Rc4+ {[%emt 0:00:56]} 39. Kg3 {[%emt 0:00:25]} f5 {[%emt 0:01:06]} 40. Rb3 {[%emt 0:00:00]} Rg4+ {[%emt 0:00:00]} 41. Kh3 {[%emt 0:04:07]} Ne6 {[%emt 0:02:05]} 42. Rb5+ {[%emt 0:02:21]} Kf6 {[%emt 0:01:58]} 43. Rb6 {[%emt 0:00:08]} Kf7 {[%emt 0:07:28]} 44. Rb7+ {[%emt 0:01:51]} Kf6 {[%emt 0:03:49]} 45. Rb6 {[%emt 0:00:07]} Rd4 {[%emt 0:03:32]} 46. Kg3 {[%emt 0:05:08]} Rd3+ {[%emt 0:01:06]} 47. Kg2 {[%emt 0:00:57]} Rd7 {[%emt 0:02:51]} 48. Ra6 {[%emt 0:02:27]} Rd4 {[%emt 0:01:05]} 49. Kh3 {[%emt 0:00:49]} Re4 {[%emt 0:02:32]} 50. Nc8 {[%emt 0:11:19]} Re3+ {[%emt 0:01:18]} 51. Kg2 {[%emt 0:01:41]} Kg7 {[%emt 0:03:33]} 52. Nd6 {[%emt 0:01:09]} Nd4 {[%emt 0:02:53]} 53. Ra4 {[%emt 0:02:23]} Rd3 {[%emt 0:01:23]} *

[Event "FIDE WYCC Open U14 2023"]
[Site "Montesilvano"]
[Date "2023.11.18"]
[Round "6.1"]
[White "Mamedov, Edgar"]
[Black "Tabuenca Mendataurigoitia, Daniel"]
[Result "1/2-1/2"]
[ECO "E10"]
[WhiteElo "2234"]
[BlackElo "2383"]
[Annotator "RC"]
[PlyCount "109"]
[EventDate "2023.11.13"]
[EventType "swiss"]
[EventCountry "ITA"]
[SourceTitle "playchess.com"]
[Source "ChessBase"]
[SourceQuality "1"]
[TimeControl "40/5400+30:1800+30"]

1. d4 {[%emt 0:00:08]} Nf6 {[%emt 0:00:20]} 2. c4 {[%emt 0:00:12]} e6 {[%emt 0:00:09]} 3. Nf3 {[%emt 0:00:08]} a6 {[%emt 0:00:07]} 4. Nc3 {[%emt 0:02:37]} d5 {[%emt 0:00:13]} 5. c5 {[%emt 0:00:59]} b6 {[%emt 0:07:43]} 6. cxb6 {[%emt 0:00:18]} cxb6 {[%emt 0:00:29]} 7. Bf4 {[%emt 0:00:22]} Bd6 {[%emt 0:02:28]} 8. e3 {[%emt 0:00:40]} O-O {[%emt 0:02:26]} 9. Bd3 {[%emt 0:00:46]} Bb7 {[%emt 0:07:41]} 10. O-O {[%emt 0:00:26]} Nc6 {[%emt 0:05:17]} 11. Rc1 {[%emt 0:01:48]} Rc8 {[%emt 0:02:04]} 12. Qe2 {[%emt 0:11:49]} b5 {[%emt 0:07:36]} 13. Bxd6 {[%emt 0:13:40]} Qxd6 {[%emt 0:00:07]} 14. a4 {[%emt 0:00:39]} b4 {[%emt 0:05:22]} 15. Nb1 {[%emt 0:01:54]} Na5 {[%emt 0:07:40]} 16. Ne5 {[%emt 0:06:16]} h6 {[%emt 0:07:38]} 17. Nd2 {[%emt 0:05:10]} Rfd8 {[%emt 0:10:51]} 18. f4 {[%emt 0:06:52]} Rxc1 {[%emt 0:04:37]} 19. Rxc1 {[%emt 0:00:06]} Rc8 {[%emt 0:00:20]} 20. Rxc8+ {[%emt 0:19:14]} Bxc8 {[%emt 0:00:01]} 21. g4 {[%emt 0:00:11]} Nd7 {[%emt 0:06:23]} 22. Ndf3 {[%emt 0:02:45]} Nxe5 {[%emt 0:03:41]} 23. Nxe5 {[%emt 0:08:27]} f6 {[%emt 0:01:57]} 24. Nf3 Qc6 25. g5 {[%emt 0:02:44]} Qc1+ {[%emt 0:03:21]} 26. Kf2 {[%emt 0:01:04]} Nc4 {[%emt 0:01:06]} 27. b3 {[%emt 0:02:58]} Nb2 {[%emt 0:01:33]} 28. Bc2 {[%emt 0:03:48]} a5 {[%emt 0:01:48]} 29. gxf6 {[%emt 0:03:06]} gxf6 {[%emt 0:00:52]} 30. Kg3 {[%emt 0:01:32]} Bd7 {[%emt 0:06:33]} 31. e4 {[%emt 0:02:01]} Bc6 {[%emt 0:00:20]} 32. e5 {[%emt 0:01:21]} f5 {[%emt 0:00:33]} 33. Qd2 {[%emt 0:02:19]} Qa1 {[%emt 0:02:02]} 34. Kh4 {[%emt 0:00:34]} Qf1 {[%emt 0:01:13]} 35. Kg3 {[%emt 0:00:23]} Nc4 {[%emt 0:01:23]} 36. Qe1 {[%emt 0:00:21]} Qxe1+ {[%emt 0:01:23]} 37. Nxe1 {[%emt 0:00:02]} Ne3 {[%emt 0:01:02]} 38. Bd3 {[%emt 0:00:43]} Nd1 {[%emt 0:00:29]} 39. Kf3 {[%emt 0:01:02]} Be8 {[%emt 0:00:13]} 40. Ke2 {[%emt 0:00:00]} Bh5+ {[%emt 0:00:00]} 41. Kd2 {[%emt 0:02:04]} Nc3 {[%emt 0:04:36]} 42. Bc2 {[%emt 0:05:58]} Kf7 {[%emt 0:09:19]} 43. Nd3 {[%emt 0:01:31]} Ne4+ {[%emt 0:00:20]} 44. Ke3 {[%emt 0:00:07]} Ke7 {[%emt 0:00:27]} 45. Nb2 {[%emt 0:00:48]} Bg4 {[%emt 0:01:28]} 46. Nd3 {[%emt 0:02:41]} Kd7 {[%emt 0:01:38]} 47. Nf2 {[%emt 0:00:51]} Bh5 {[%emt 0:00:19]} 48. Bd1 {[%emt 0:02:29]} Nxf2 {[%emt 0:07:01]} 49. Bxh5 {[%emt 0:00:07]} Ne4 {[%emt 0:00:16]} 50. Ke2 {[%emt 0:00:40]} Ke7 {[%emt 0:00:44]} 51. Ke3 {[%emt 0:00:06]} Nc3 {[%emt 0:00:09]} 52. Kd2 {[%emt 0:00:06]} Ne4+ {[%emt 0:00:18]} 53. Ke3 {[%emt 0:00:05]} Nc3 {[%emt 0:00:04]} 54. Kd2 {[%emt 0:00:06]} Ne4+ {[%emt 0:00:04]} 55. Ke3 {[%emt 0:00:10]} 1/2-1/2

[Event "FIDE WYCC Open U14 2023"]
[Site "Montesilvano"]
[Date "2023.11.18"]
[Round "6.2"]
[White "Dinh Nho Kiet"]
[Black "Banh Gia Huy"]
[Result "*"]
[WhiteElo "2253"]
[BlackElo "2397"]
[Annotator "RC"]
[PlyCount "73"]
[EventDate "2023.11.13"]
[EventType "swiss"]
[EventCountry "ITA"]
[SourceTitle "playchess.com"]
[Source "ChessBase"]
[SourceQuality "1"]
[TimeControl "40/5400+30:1800+30"]

1. d4 {[%emt 0:00:10]} Nf6 {[%emt 0:00:04]} 2. Nf3 {[%emt 0:00:48]} d5 {[%emt 0:00:08]} 3. e3 {[%emt 0:00:44]} e6 {[%emt 0:00:17]} 4. Bd3 {[%emt 0:00:51]} c5 {[%emt 0:02:35]} 5. c3 {[%emt 0:00:07]} Nbd7 {[%emt 0:00:40]} 6. Nbd2 {[%emt 0:00:16]} Be7 {[%emt 0:01:16]} 7. O-O {[%emt 0:00:30]} O-O {[%emt 0:00:15]} 8. Qe2 {[%emt 0:15:02]} b6 {[%emt 0:04:00]} 9. e4 {[%emt 0:01:40]} dxe4 {[%emt 0:00:14]} 10. Nxe4 {[%emt 0:00:06]} Bb7 {[%emt 0:01:59]} 11. Rd1 {[%emt 0:07:24]} Nxe4 {[%emt 0:03:32]} 12. Bxe4 {[%emt 0:00:44]} Bxe4 {[%emt 0:00:17]} 13. Qxe4 {[%emt 0:00:10]} Nf6 {[%emt 0:00:04]} 14. Qb7 {[%emt 0:22:47]} Qb8 {[%emt 0:07:15]} 15. Qxb8 {[%emt 0:06:24]} Raxb8 {[%emt 0:00:15]} 16. Bg5 {[%emt 0:05:10]} h6 {[%emt 0:23:08]} 17. Bxf6 {[%emt 0:01:59]} Bxf6 {[%emt 0:00:04]} 18. Ne5 {[%emt 0:00:14]} Rb7 {[%emt 0:07:35]} 19. f4 {[%emt 0:01:29]} cxd4 {[%emt 0:10:06]} 20. Rxd4 {[%emt 0:00:09]} Bxe5 {[%emt 0:00:10]} 21. fxe5 {[%emt 0:00:07]} Rc8 {[%emt 0:00:13]} 22. Kf2 {[%emt 0:04:50]} Rc5 {[%emt 0:00:34]} 23. Re1 {[%emt 0:00:05]} Kf8 {[%emt 0:05:12]} 24. Re3 {[%emt 0:03:55]} Ke7 {[%emt 0:00:54]} 25. Kf3 {[%emt 0:02:13]} Rd7 {[%emt 0:00:47]} 26. Rxd7+ {[%emt 0:01:25]} Kxd7 {[%emt 0:00:02]} 27. Rd3+ {[%emt 0:01:07]} Ke7 {[%emt 0:01:07]} 28. Ke4 {[%emt 0:00:10]} f5+ {[%emt 0:02:12]} 29. exf6+ {[%emt 0:00:06]} gxf6 {[%emt 0:00:04]} 30. Rd4 {[%emt 0:09:21]} Rh5 {[%emt 0:05:40]} 31. h3 {[%emt 0:00:56]} Rg5 {[%emt 0:00:23]} 32. g4 {[%emt 0:01:34]} h5 {[%emt 0:01:36]} 33. Kf3 {[%emt 0:01:11]} hxg4+ {[%emt 0:00:46]} 34. hxg4 {[%emt 0:00:45]} Rc5 {[%emt 0:01:39]} 35. Ke4 {[%emt 0:03:49]} Rc7 {[%emt 0:01:35]} 36. Rd2 {[%emt 0:02:10]} Rc4+ {[%emt 0:01:04]} 37. Kf3 {[%emt 0:01:15]} *